[Event "10th Cesme Open-A 2024"]
[Site "Cesme"]
[Date "2024.06.30"]
[Round "9"]
[White "Isgenderova, Hayale"]
[Black "Kusluvan, Yekaterina"]
[Result "1-0"]
[ECO "C43"]
[WhiteElo "2103"]
[BlackElo "2016"]
[Annotator "RC"]
[PlyCount "105"]
[EventDate "2024.06.23"]
[EventType "swiss"]
[EventCountry "TUR"]
[SourceTitle "playchess.com"]
[Source "ChessBase"]
[SourceQuality "1"]
[TimeControl "5400+30"]

1. e4 {[%emt 0:02:00]} e5 {[%emt 0:01:00]} 2. Nf3 {[%emt 0:00:00]} Nf6 {[%emt 0:01:30]} 3. d4 {[%emt 0:00:00]} Nxe4 {[%emt 0:06:30]} 4. Bd3 {[%emt 0:00:30]} d5 {[%emt 0:02:30]} 5. Nxe5 {[%emt 0:02:30]} Bd6 {[%emt 0:07:30]} 6. Nc3 {[%emt 0:09:30]} Nxc3 {[%emt 0:06:30]} 7. bxc3 {[%emt 0:00:30]} Be6 {[%emt 0:03:30]} 8. Rb1 {[%emt 0:02:30]} Qc8 {[%emt 0:06:30]} 9. O-O {[%emt 0:00:30]} O-O {[%emt 0:08:30]} 10. Qh5 {[%emt 0:11:30]} f5 {[%emt 0:05:30]} 11. Re1 {[%emt 0:09:30]} Nd7 {[%emt 0:08:30]} 12. Nxd7 {[%emt 0:03:30]} Bxd7 {[%emt 0:01:30]} 13. c4 {[%emt 0:00:30]} c6 {[%emt 0:05:30]} 14. c5 {[%emt 0:02:30]} Bc7 {[%emt 0:00:30]} 15. Bg5 {[%emt 0:04:30]} b5 {[%emt 0:03:30]} 16. Re3 {[%emt 0:02:30]} g6 {[%emt 0:04:30]} 17. Qh4 {[%emt 0:00:30]} Rf7 {[%emt 0:05:41]} 18. Rbe1 {[%emt 0:03:30]} Bd8 {[%emt 0:00:49]} 19. g4 {[%emt 0:13:30]} fxg4 {[%emt 0:05:16]} 20. Be7 {[%emt 0:08:30]} Bf5 {[%emt 0:01:38]} 21. Bxf5 {[%emt 0:02:30]} gxf5 {[%emt 0:06:14]} 22. Qg5+ {[%emt 0:06:33]} Rg7 {[%emt 0:02:07]} 23. Qh6 {[%emt 0:01:24]} Qd7 {[%emt 0:01:50]} 24. Bxd8 {[%emt 0:02:16]} Rxd8 25. Re6 {[%emt 0:00:00]} Rf8 {[%emt 0:01:14]} 26. Rxc6 {[%emt 0:00:26]} f4 {[%emt 0:00:42]} 27. Qe6+ {[%emt 0:00:49]} Qxe6 {[%emt 0:00:49]} 28. Rcxe6 {[%emt 0:00:04]} g3 {[%emt 0:00:31]} 29. fxg3 {[%emt 0:04:34]} fxg3 {[%emt 0:01:00]} 30. Re8 {[%emt 0:00:05]} gxh2+ {[%emt 0:01:08]} 31. Kxh2 {[%emt 0:00:03]} Rg4 {[%emt 0:00:23]} 32. c3 {[%emt 0:03:01]} Rxe8 {[%emt 0:02:05]} 33. Rxe8+ {[%emt 0:00:08]} Kf7 {[%emt 0:00:00]} 34. Re5 {[%emt 0:00:57]} b4 {[%emt 0:00:45]} 35. cxb4 {[%emt 0:04:32]} Rxd4 {[%emt 0:00:08]} 36. b5 {[%emt 0:00:50]} Rb4 {[%emt 0:01:38]} 37. a4 {[%emt 0:00:15]} Rxa4 {[%emt 0:00:42]} 38. Rxd5 {[%emt 0:00:03]} Rb4 {[%emt 0:00:46]} 39. c6 {[%emt 0:00:12]} Rc4 {[%emt 0:00:35]} 40. Rd7+ {[%emt 0:00:30]} Ke6 {[%emt 0:00:00]} 41. Rxa7 {[%emt 0:00:00]} Kd6 {[%emt 0:00:31]} 42. Rxh7 {[%emt 0:00:07]} Kc5 {[%emt 0:00:14]} 43. Rb7 {[%emt 0:00:32]} Kd6 {[%emt 0:00:52]} 44. Kg3 {[%emt 0:00:16]} Rc1 {[%emt 0:00:32]} 45. Kf3 {[%emt 0:00:10]} Rc2 {[%emt 0:00:14]} 46. Ke4 {[%emt 0:00:41]} Rc1 {[%emt 0:00:00]} 47. Kd4 {[%emt 0:00:00]} Rc2 {[%emt 0:00:33]} 48. Rh7 {[%emt 0:01:58]} Rc1 {[%emt 0:00:30]} 49. Rb7 {[%emt 0:01:26]} Rc2 {[%emt 0:00:00]} 50. Ke4 {[%emt 0:00:30]} Rc1 {[%emt 0:00:30]} 51. Kf5 {[%emt 0:00:00]} Rc2 {[%emt 0:01:50]} 52. Kf6 {[%emt 0:00:14]} Rf2+ {[%emt 0:00:59]} 53. Kg7 {[%emt 0:00:03]} 1-0

[Event "10th Cesme Open-A 2024"]
[Site "Cesme"]
[Date "2024.06.30"]
[Round "9"]
[White "Anacak, Hasan Gunes"]
[Black "Demirbag, Alihan"]
[Result "1/2-1/2"]
[ECO "B42"]
[WhiteElo "2095"]
[BlackElo "2055"]
[Annotator "NA RC"]
[PlyCount "73"]
[EventDate "2024.06.23"]
[EventType "swiss"]
[EventCountry "TUR"]
[SourceTitle "playchess.com"]
[Source "ChessBase"]
[SourceQuality "1"]
[TimeControl "5400+30"]

1. e4 {[%emt 0:01:00]} c5 {[%emt 0:04:00]} 2. Nf3 {[%emt 0:00:30]} e6 {[%emt 0:00:30]} 3. d4 {[%emt 0:00:00]} cxd4 {[%emt 0:00:00]} 4. Nxd4 {[%emt 0:00:00]} a6 {[%emt 0:00:00]} 5. Bd3 {[%emt 0:00:30]} Bc5 {[%emt 0:00:00]} 6. Nb3 {[%emt 0:00:00]} Ba7 {[%emt 0:00:00]} 7. Qe2 {[%emt 0:00:00]} Ne7 {[%emt 0:00:00]} 8. Be3 {[%emt 0:00:30]} O-O {[%emt 0:00:00]} 9. Nc3 {[%emt 0:02:30]} b5 {[%emt 0:00:30]} 10. O-O {[%emt 0:12:30]} Nbc6 {[%emt 0:00:30]} 11. Bxa7 {[%emt 0:01:30]} Rxa7 {[%emt 0:00:00]} 12. f4 {[%emt 0:01:30]} d6 {[%emt 0:13:00]} 13. a4 {[%emt 0:13:30]} b4 {[%emt 0:04:30]} 14. Nb1 {[%emt 0:02:30]} Na5 {[%emt 0:11:30]} 15. N1d2 {[%emt 0:13:30]} Nxb3 {[%emt 0:00:30]} 16. Nxb3 {[%emt 0:00:30]} a5 {[%emt 0:15:30]} 17. Kh1 {[%emt 0:05:30]} Ng6 {[%emt 0:07:30]} 18. Nd4 {[%emt 0:12:30]} Bd7 {[%emt 0:11:30]} 19. f5 {[%emt 0:05:30]} Ne5 {[%emt 0:01:30]} 20. f6 {[%emt 0:00:30]} gxf6 {[%emt 0:00:30]} 21. Qh5 {[%emt 0:01:30]} Kh8 {[%emt 0:03:30]} 22. Rf4 {[%emt 0:03:30]} Rg8 {[%emt 0:00:30]} 23. Raf1 {[%emt 0:00:30]} Rg6 {[%emt 0:05:30]} 24. Nf3 {[%emt 0:05:18]} Bxa4 {[%emt 0:08:38]} 25. Nxe5 {[%emt 0:01:19]} dxe5 {[%emt 0:00:52]} 26. Rxf6 {[%emt 0:00:03]} Kg8 {[%emt 0:05:58]} 27. Qxe5 {[%emt 0:01:51]} Be8 {[%emt 0:02:44]} 28. Qh5 {[%emt 0:03:20]} Bc6 {[%emt 0:03:23]} 29. Qc5 {[%emt 0:07:19]} Rxf6 {[%emt 0:00:34]} 30. Qg5+ {[%emt 0:00:30]} Kf8 {[%emt 0:00:30]} 31. Rxf6 {[%emt 0:00:00]} Qd4 {[%emt 0:00:33]} 32. Qf4 {[%emt 0:03:19]} Kg7 {[%emt 0:00:30]} 33. Qg5+ {[%emt 0:00:30]} Kf8 {[%emt 0:00:30]} 34. Qf4 {[%emt 0:00:30]} Be8 {[%emt 0:00:30]} 35. Qg5 {[%emt 0:00:30]} Bc6 {[%emt 0:00:30]} 36. Qf4 {[%emt 0:00:25]} b3 {[%emt 0:00:30]} 37. Rxe6 {[%emt 0:00:30]} 1/2-1/2

[Event "10th Cesme Open-A 2024"]
[Site "Cesme"]
[Date "2024.06.30"]
[Round "9"]
[White "Portakalci, Yusuf"]
[Black "Kurt, Ozgur Toprak"]
[Result "1/2-1/2"]
[ECO "D02"]
[WhiteElo "2034"]
[BlackElo "2124"]
[Annotator "RC"]
[PlyCount "53"]
[EventDate "2024.06.23"]
[EventType "swiss"]
[EventCountry "TUR"]
[SourceTitle "playchess.com"]
[Source "ChessBase"]
[SourceQuality "1"]
[TimeControl "5400+30"]

1. d4 {[%emt 0:03:00]} d5 {[%emt 0:01:00]} 2. Nf3 {[%emt 0:00:30]} Nf6 {[%emt 0:00:30]} 3. Bf4 {[%emt 0:00:00]} c5 {[%emt 0:00:30]} 4. c3 {[%emt 0:03:00]} Nc6 {[%emt 0:03:30]} 5. e3 {[%emt 0:00:30]} Qb6 {[%emt 0:01:30]} 6. Qb3 {[%emt 0:01:30]} c4 {[%emt 0:02:30]} 7. Qc2 {[%emt 0:00:30]} Bf5 {[%emt 0:01:30]} 8. Qc1 {[%emt 0:00:00]} h6 {[%emt 0:01:30]} 9. h3 {[%emt 0:00:00]} e6 {[%emt 0:01:30]} 10. Nbd2 {[%emt 0:00:30]} Be7 {[%emt 0:01:30]} 11. Be2 {[%emt 0:00:30]} O-O {[%emt 0:01:30]} 12. O-O {[%emt 0:00:00]} Rfc8 {[%emt 0:00:30]} 13. Re1 {[%emt 0:00:00]} Qa5 {[%emt 0:03:30]} 14. Ne5 {[%emt 0:04:30]} b5 {[%emt 0:05:30]} 15. a3 {[%emt 0:04:30]} Qd8 {[%emt 0:02:30]} 16. Bf3 {[%emt 0:02:30]} Na5 {[%emt 0:02:30]} 17. Bd1 {[%emt 0:04:30]} Nd7 {[%emt 0:05:30]} 18. e4 {[%emt 0:10:30]} dxe4 {[%emt 0:10:30]} 19. Nxe4 {[%emt 0:00:30]} Nxe5 {[%emt 0:06:30]} 20. Bxe5 {[%emt 0:00:30]} Nb3 {[%emt 0:08:30]} 21. Bxb3 {[%emt 0:03:30]} cxb3 {[%emt 0:00:00]} 22. Qd1 {[%emt 0:05:30]} Qd5 {[%emt 0:06:00]} 23. Nd2 {[%emt 0:00:30]} Bc2 {[%emt 0:01:30]} 24. Qg4 {[%emt 0:00:30]} Bg6 {[%emt 0:00:30]} 25. Qd1 {[%emt 0:02:30]} Bc2 {[%emt 0:00:30]} 26. Qg4 {[%emt 0:00:00]} Bg6 {[%emt 0:00:00]} 27. Qd1 {[%emt 0:18:00]} 1/2-1/2

[Event "10th Cesme Open-A 2024"]
[Site "Cesme"]
[Date "2024.06.30"]
[Round "9"]
[White "Yildiz, Serdar Murat"]
[Black "Jafarli, Babak"]
[Result "1/2-1/2"]
[ECO "B38"]
[WhiteElo "2026"]
[BlackElo "2192"]
[Annotator "RC"]
[PlyCount "87"]
[EventDate "2024.06.23"]
[EventType "swiss"]
[EventCountry "TUR"]
[SourceTitle "playchess.com"]
[Source "ChessBase"]
[SourceQuality "1"]
[TimeControl "5400+30"]

1. e4 {[%emt 0:01:00]} c5 {[%emt 0:01:00]} 2. Nf3 {[%emt 0:00:30]} Nc6 {[%emt 0:00:30]} 3. d4 {[%emt 0:00:30]} cxd4 {[%emt 0:00:00]} 4. Nxd4 {[%emt 0:00:00]} g6 {[%emt 0:00:00]} 5. c4 {[%emt 0:00:00]} Bg7 {[%emt 0:00:00]} 6. Be3 {[%emt 0:00:00]} Nf6 {[%emt 0:00:00]} 7. Nc3 {[%emt 0:00:00]} O-O {[%emt 0:00:00]} 8. Be2 {[%emt 0:00:00]} Nxd4 {[%emt 0:00:00]} 9. Bxd4 {[%emt 0:00:00]} d6 {[%emt 0:00:00]} 10. O-O {[%emt 0:00:00]} Be6 {[%emt 0:01:00]} 11. Qd2 {[%emt 0:01:00]} Qa5 {[%emt 0:00:30]} 12. Rad1 {[%emt 0:00:30]} Rfc8 {[%emt 0:00:30]} 13. b3 {[%emt 0:00:00]} a6 {[%emt 0:10:30]} 14. f4 {[%emt 0:01:00]} Qd8 {[%emt 0:07:30]} 15. f5 {[%emt 0:25:30]} Bd7 {[%emt 0:00:30]} 16. g4 {[%emt 0:00:30]} Bc6 {[%emt 0:00:30]} 17. Rf2 {[%emt 0:04:30]} Qa5 {[%emt 0:04:30]} 18. Qf4 {[%emt 0:07:30]} h6 {[%emt 0:11:30]} 19. h4 {[%emt 0:01:30]} gxf5 {[%emt 0:03:30]} 20. b4 {[%emt 0:22:30]} Qxb4 {[%emt 0:02:30]} 21. exf5 {[%emt 0:02:30]} Nh7 {[%emt 0:01:30]} 22. Bxg7 {[%emt 0:03:30]} Kxg7 {[%emt 0:00:30]} 23. Rd3 {[%emt 0:00:30]} f6 {[%emt 0:05:30]} 24. Re3 {[%emt 0:02:30]} Rc7 {[%emt 0:01:30]} 25. Bf3 {[%emt 0:02:30]} Qc5 {[%emt 0:01:30]} 26. Kh2 {[%emt 0:02:30]} Re8 {[%emt 0:00:30]} 27. Nd5 {[%emt 0:01:30]} Bxd5 {[%emt 0:01:30]} 28. Bxd5 {[%emt 0:00:30]} b5 {[%emt 0:00:30]} 29. Rg2 {[%emt 0:01:30]} bxc4 {[%emt 0:01:30]} 30. g5 {[%emt 0:06:18]} fxg5 {[%emt 0:01:30]} 31. hxg5 {[%emt 0:03:33]} Qxd5 {[%emt 0:01:30]} 32. f6+ {[%emt 0:02:59]} Kh8 {[%emt 0:04:30]} 33. f7 {[%emt 0:03:11]} Rf8 {[%emt 0:00:30]} 34. g6 {[%emt 0:01:36]} Ng5 {[%emt 0:06:30]} 35. Rxe7 {[%emt 0:00:01]} Kg7 {[%emt 0:01:30]} 36. Rxc7 {[%emt 0:00:49]} Nf3+ {[%emt 0:00:30]} 37. Kg3 {[%emt 0:00:50]} Ne5 {[%emt 0:00:30]} 38. Rf2 {[%emt 0:00:12]} Qe6 {[%emt 0:00:00]} 39. Qf5 {[%emt 0:01:20]} Qxg6+ {[%emt 0:01:00]} 40. Qxg6+ {[%emt 0:00:14]} Kxg6 {[%emt 0:00:30]} 41. Rd2 {[%emt 0:00:30]} Kf5 {[%emt 0:01:30]} 42. Rxd6 {[%emt 0:01:03]} Nxf7 {[%emt 0:00:30]} 43. Rd5+ {[%emt 0:00:48]} Ke4 {[%emt 0:01:30]} 44. Rdc5 {[%emt 0:00:52]} 1/2-1/2

[Event "10th Cesme Open-A 2024"]
[Site "Cesme"]
[Date "2024.06.30"]
[Round "9"]
[White "Pereverzev, Timofei"]
[Black "Topuz, Mirac Melih"]
[Result "0-1"]
[ECO "C63"]
[WhiteElo "2019"]
[BlackElo "2055"]
[Annotator "NA RC"]
[PlyCount "128"]
[EventDate "2024.06.23"]
[EventType "swiss"]
[EventCountry "TUR"]
[SourceTitle "playchess.com"]
[Source "ChessBase"]
[SourceQuality "1"]
[TimeControl "5400+30"]

1. e4 {[%emt 0:02:00]} e5 {[%emt 0:01:00]} 2. Nf3 {[%emt 0:00:00]} Nc6 {[%emt 0:00:30]} 3. Bb5 {[%emt 0:00:00]} f5 {[%emt 0:00:00]} 4. d3 {[%emt 0:00:30]} fxe4 {[%emt 0:00:00]} 5. dxe4 {[%emt 0:00:30]} Nf6 {[%emt 0:00:30]} 6. Qd3 {[%emt 0:01:30]} Bc5 {[%emt 0:00:30]} 7. Qc4 {[%emt 0:00:30]} Qe7 {[%emt 0:00:30]} 8. Nc3 {[%emt 0:15:30]} a6 {[%emt 0:06:30]} 9. Bxc6 {[%emt 0:00:30]} dxc6 {[%emt 0:00:30]} 10. Qe2 {[%emt 0:07:30]} O-O {[%emt 0:10:30]} 11. Be3 {[%emt 0:00:30]} Bd6 {[%emt 0:01:30]} 12. O-O {[%emt 0:01:30]} Bg4 {[%emt 0:03:30]} 13. Qc4+ {[%emt 0:01:30]} Be6 {[%emt 0:00:30]} 14. Qe2 {[%emt 0:00:30]} b5 {[%emt 0:02:30]} 15. Nd2 {[%emt 0:01:30]} Ng4 {[%emt 0:00:00]} 16. Nd1 {[%emt 0:00:00]} Qh4 {[%emt 0:06:00]} 17. h3 {[%emt 0:00:00]} Nf6 {[%emt 0:00:00]} 18. f3 {[%emt 0:10:30]} Nh5 {[%emt 0:00:00]} 19. Qe1 {[%emt 0:00:30]} Qf6 {[%emt 0:01:30]} 20. Nf2 {[%emt 0:05:30]} Qg6 {[%emt 0:09:30]} 21. Ng4 {[%emt 0:11:30]} Nf4 {[%emt 0:01:30]} 22. Bxf4 {[%emt 0:01:30]} Rxf4 {[%emt 0:00:30]} 23. g3 {[%emt 0:00:00]} Rf7 {[%emt 0:04:30]} 24. Kg2 {[%emt 0:00:00]} Raf8 {[%emt 0:01:30]} 25. Qe2 {[%emt 0:00:30]} Rd8 {[%emt 0:05:30]} 26. a3 {[%emt 0:07:30]} Rfd7 {[%emt 0:01:30]} 27. Rad1 {[%emt 0:00:30]} h5 {[%emt 0:12:30]} 28. Ne3 {[%emt 0:00:30]} Bc5 {[%emt 0:00:30]} 29. Rfe1 {[%emt 0:16:34]} Bd4 {[%emt 0:06:30]} 30. Nb1 {[%emt 0:05:08]} Qf7 {[%emt 0:06:21]} 31. Nc3 {[%emt 0:03:32]} a5 {[%emt 0:01:15]} 32. Rd3 {[%emt 0:01:33]} h4 {[%emt 0:06:26]} 33. g4 {[%emt 0:03:35]} Qf4 {[%emt 0:00:49]} 34. Qf2 {[%emt 0:00:02]} Bc4 {[%emt 0:01:14]} 35. Ne2 {[%emt 0:00:04]} Qf6 {[%emt 0:03:51]} 36. Nxd4 {[%emt 0:00:30]} Bxd3 {[%emt 0:01:26]} 37. Ndf5 {[%emt 0:00:11]} Bc4 {[%emt 0:00:42]} 38. Nxc4 {[%emt 0:00:02]} bxc4 {[%emt 0:00:00]} 39. Re2 {[%emt 0:00:24]} g6 {[%emt 0:01:09]} 40. Ne3 {[%emt 0:00:07]} c3 {[%emt 0:01:06]} 41. bxc3 {[%emt 0:00:06]} Qg5 {[%emt 0:05:45]} 42. Nc4 {[%emt 0:00:36]} Rd1 {[%emt 0:00:41]} 43. Nb2 {[%emt 0:01:37]} Rb1 {[%emt 0:00:30]} 44. Nd3 {[%emt 0:01:58]} Rxd3 {[%emt 0:00:15]} 45. f4 {[%emt 0:00:07]} exf4 {[%emt 0:01:08]} 46. cxd3 {[%emt 0:00:05]} f3+ {[%emt 0:00:13]} 47. Kxf3 {[%emt 0:00:34]} Qf6+ {[%emt 0:00:33]} 48. Kg2 {[%emt 0:00:57]} Qxc3 {[%emt 0:00:11]} 49. Qxh4 {[%emt 0:00:12]} Qxd3 {[%emt 0:00:30]} 50. Qf2 {[%emt 0:01:37]} Rb3 {[%emt 0:00:00]} 51. Kg1 {[%emt 0:01:36]} Qxh3 {[%emt 0:00:00]} 52. Qf1 {[%emt 0:00:41]} Rg3+ {[%emt 0:02:00]} 53. Rg2 {[%emt 0:00:01]} Rxg2+ {[%emt 0:00:47]} 54. Qxg2 {[%emt 0:00:00]} Qxg2+ {[%emt 0:00:24]} 55. Kxg2 {[%emt 0:00:30]} Kf7 {[%emt 0:00:00]} 56. Kf3 {[%emt 0:00:00]} Ke6 {[%emt 0:00:23]} 57. Ke3 {[%emt 0:00:00]} Ke5 {[%emt 0:00:00]} 58. g5 {[%emt 0:00:19]} a4 {[%emt 0:00:33]} 59. Kd3 {[%emt 0:01:02]} Kf4 {[%emt 0:00:30]} 60. Kd4 {[%emt 0:00:00]} Kxg5 {[%emt 0:00:53]} 61. Ke5 {[%emt 0:00:13]} c5 {[%emt 0:00:09]} 62. Ke6 {[%emt 0:00:00]} c4 {[%emt 0:00:30]} 63. e5 {[%emt 0:00:13]} c3 {[%emt 0:00:00]} 64. Kf7 {[%emt 0:00:50]} c2 {[%emt 0:00:00]} 0-1

[Event "10th Cesme Open-A 2024"]
[Site "Cesme"]
[Date "2024.06.30"]
[Round "9"]
[White "Demirbas, Emre"]
[Black "Ozkan, Ervin"]
[Result "1-0"]
[ECO "D11"]
[WhiteElo "2012"]
[BlackElo "2147"]
[Annotator "RC"]
[PlyCount "103"]
[EventDate "2024.06.23"]
[EventType "swiss"]
[EventCountry "TUR"]
[SourceTitle "playchess.com"]
[Source "ChessBase"]
[SourceQuality "1"]
[TimeControl "5400+30"]

1. Nf3 {[%emt 0:07:00]} d5 {[%emt 0:01:00]} 2. c4 {[%emt 0:00:30]} c6 {[%emt 0:00:30]} 3. g3 {[%emt 0:00:30]} Nf6 {[%emt 0:00:30]} 4. Bg2 {[%emt 0:00:00]} Bf5 {[%emt 0:02:30]} 5. b3 {[%emt 0:03:00]} e6 {[%emt 0:00:30]} 6. Bb2 {[%emt 0:00:30]} Nbd7 {[%emt 0:00:30]} 7. O-O {[%emt 0:00:00]} h6 {[%emt 0:00:30]} 8. Nc3 {[%emt 0:02:00]} Be7 {[%emt 0:00:30]} 9. d4 {[%emt 0:00:00]} O-O {[%emt 0:00:30]} 10. Nd2 {[%emt 0:00:00]} Qb6 {[%emt 0:03:30]} 11. e4 {[%emt 0:05:30]} dxe4 {[%emt 0:01:30]} 12. Ndxe4 {[%emt 0:00:30]} Nxe4 {[%emt 0:00:00]} 13. Nxe4 {[%emt 0:00:30]} Nf6 {[%emt 0:01:00]} 14. Nc5 {[%emt 0:00:00]} Rfd8 {[%emt 0:12:30]} 15. Qc1 {[%emt 0:07:00]} Nd7 {[%emt 0:03:30]} 16. Na4 {[%emt 0:03:30]} Qa6 {[%emt 0:10:30]} 17. Rd1 {[%emt 0:05:30]} Rac8 {[%emt 0:03:30]} 18. Qe3 {[%emt 0:05:30]} b5 {[%emt 0:04:30]} 19. cxb5 {[%emt 0:03:30]} cxb5 {[%emt 0:00:30]} 20. Nc3 {[%emt 0:00:30]} Qb6 {[%emt 0:17:30]} 21. Qe2 {[%emt 0:11:30]} Bb4 {[%emt 0:01:30]} 22. Rac1 {[%emt 0:00:30]} Qa5 {[%emt 0:02:30]} 23. Nxb5 {[%emt 0:13:30]} Qxa2 {[%emt 0:01:30]} 24. d5 {[%emt 0:00:30]} Rxc1 {[%emt 0:12:17]} 25. Rxc1 {[%emt 0:00:30]} Nf6 {[%emt 0:03:19]} 26. Nd4 {[%emt 0:09:30]} Bd3 {[%emt 0:07:13]} 27. Qxd3 {[%emt 0:01:30]} Qxb2 {[%emt 0:00:23]} 28. Rb1 {[%emt 0:00:30]} Qc3 {[%emt 0:07:30]} 29. Qxc3 {[%emt 0:03:10]} Bxc3 {[%emt 0:00:01]} 30. Nc6 {[%emt 0:00:31]} Rd6 {[%emt 0:02:51]} 31. Rc1 {[%emt 0:01:58]} Bb2 {[%emt 0:00:39]} 32. Rc2 {[%emt 0:00:01]} Nxd5 {[%emt 0:00:18]} 33. Bxd5 {[%emt 0:00:52]} exd5 {[%emt 0:00:30]} 34. Ne7+ {[%emt 0:00:00]} Kh7 {[%emt 0:00:56]} 35. Rxb2 {[%emt 0:00:00]} Rd7 {[%emt 0:00:08]} 36. Nc6 {[%emt 0:00:14]} Rb7 {[%emt 0:00:31]} 37. b4 {[%emt 0:00:54]} Kg6 {[%emt 0:00:22]} 38. Rd2 {[%emt 0:00:17]} f6 {[%emt 0:01:30]} 39. Rxd5 {[%emt 0:00:21]} Rb6 {[%emt 0:00:00]} 40. Ne7+ {[%emt 0:03:43]} Kf7 {[%emt 0:00:00]} 41. Rd7 {[%emt 0:00:16]} Ke6 {[%emt 0:00:24]} 42. Rxa7 {[%emt 0:00:50]} Rxb4 {[%emt 0:00:05]} 43. Ng6 {[%emt 0:00:06]} f5 {[%emt 0:00:34]} 44. Ra6+ {[%emt 0:01:37]} Kf7 {[%emt 0:00:30]} 45. Ne5+ {[%emt 0:00:00]} Kg8 {[%emt 0:00:00]} 46. Ra8+ {[%emt 0:00:30]} Kh7 {[%emt 0:00:18]} 47. h4 {[%emt 0:00:00]} Re4 {[%emt 0:01:13]} 48. Re8 {[%emt 0:01:18]} Ra4 {[%emt 0:01:11]} 49. h5 {[%emt 0:00:49]} f4 {[%emt 0:00:29]} 50. gxf4 {[%emt 0:00:48]} Ra7 {[%emt 0:00:38]} 51. Ng6 {[%emt 0:01:09]} Ra8 {[%emt 0:01:03]} 52. Nf8+ {[%emt 0:00:05]} 1-0

[Event "10th Cesme Open-A 2024"]
[Site "Cesme"]
[Date "2024.06.30"]
[Round "9"]
[White "Nazarian, Arash"]
[Black "Erten, Kerem"]
[Result "0-1"]
[ECO "C02"]
[WhiteElo "2007"]
[BlackElo "2277"]
[Annotator "RC"]
[PlyCount "94"]
[EventDate "2024.06.23"]
[EventType "swiss"]
[EventCountry "TUR"]
[SourceTitle "playchess.com"]
[Source "ChessBase"]
[SourceQuality "1"]
[TimeControl "5400+30"]

1. e4 {[%emt 0:03:00]} e6 {[%emt 0:01:00]} 2. d4 {[%emt 0:00:30]} d5 {[%emt 0:00:30]} 3. e5 {[%emt 0:00:30]} c5 {[%emt 0:00:30]} 4. c3 {[%emt 0:00:00]} Nc6 {[%emt 0:00:00]} 5. Nf3 {[%emt 0:00:00]} Qb6 {[%emt 0:00:00]} 6. a3 {[%emt 0:00:30]} c4 {[%emt 0:00:00]} 7. Nbd2 {[%emt 0:00:00]} Na5 {[%emt 0:00:00]} 8. Rb1 {[%emt 0:01:00]} Bd7 {[%emt 0:00:00]} 9. b3 {[%emt 0:02:30]} cxb3 {[%emt 0:01:00]} 10. Nxb3 {[%emt 0:00:30]} Ba4 {[%emt 0:00:30]} 11. Nfd2 {[%emt 0:00:30]} Qc7 {[%emt 0:03:30]} 12. Qf3 {[%emt 0:12:30]} Nxb3 {[%emt 0:03:30]} 13. Nxb3 {[%emt 0:00:00]} Rc8 {[%emt 0:01:30]} 14. Bd2 {[%emt 0:02:00]} f6 {[%emt 0:05:30]} 15. Bd3 {[%emt 0:04:30]} Qf7 {[%emt 0:11:30]} 16. Qe2 {[%emt 0:09:30]} fxe5 {[%emt 0:03:30]} 17. Qxe5 {[%emt 0:00:30]} Nf6 {[%emt 0:01:30]} 18. O-O {[%emt 0:01:30]} Be7 {[%emt 0:03:30]} 19. Nc1 {[%emt 0:16:30]} b6 {[%emt 0:05:30]} 20. Ne2 {[%emt 0:02:30]} O-O {[%emt 0:11:30]} 21. Nf4 {[%emt 0:00:30]} Bd7 {[%emt 0:02:30]} 22. a4 {[%emt 0:05:30]} Bd8 {[%emt 0:03:30]} 23. Nh3 {[%emt 0:02:30]} Bc7 {[%emt 0:03:30]} 24. Qe2 {[%emt 0:02:30]} h6 {[%emt 0:01:30]} 25. Rbc1 {[%emt 0:03:30]} Bxa4 {[%emt 0:04:30]} 26. f3 {[%emt 0:04:30]} Qd7 {[%emt 0:11:30]} 27. g4 {[%emt 0:00:30]} Rce8 {[%emt 0:02:33]} 28. Rb1 {[%emt 0:03:30]} Bc6 {[%emt 0:02:11]} 29. Qg2 {[%emt 0:01:30]} e5 {[%emt 0:01:52]} 30. dxe5 {[%emt 0:00:00]} Bxe5 {[%emt 0:00:52]} 31. g5 {[%emt 0:01:00]} Nh7 {[%emt 0:03:42]} 32. gxh6 {[%emt 0:00:30]} Kh8 {[%emt 0:00:27]} 33. hxg7+ {[%emt 0:01:30]} Qxg7 {[%emt 0:00:43]} 34. Qxg7+ {[%emt 0:00:30]} Kxg7 {[%emt 0:00:41]} 35. Rb4 {[%emt 0:01:30]} d4 {[%emt 0:01:54]} 36. cxd4 {[%emt 0:00:30]} Bd6 {[%emt 0:00:28]} 37. Rb2 {[%emt 0:00:40]} Bd7 {[%emt 0:02:02]} 38. Kg2 {[%emt 0:06:02]} Kh8 {[%emt 0:00:14]} 39. Nf2 {[%emt 0:00:27]} Bf4 {[%emt 0:02:45]} 40. Bc3 {[%emt 0:00:50]} Rc8 {[%emt 0:00:38]} 41. Ne4 {[%emt 0:00:42]} Ng5 {[%emt 0:00:39]} 42. d5+ {[%emt 0:02:40]} Rxc3 {[%emt 0:00:04]} 43. Nxc3 {[%emt 0:00:00]} Bh3+ {[%emt 0:00:19]} 44. Kf2 {[%emt 0:00:47]} Be5 {[%emt 0:03:11]} 45. Rc1 {[%emt 0:00:14]} Rxf3+ {[%emt 0:00:00]} 46. Ke2 {[%emt 0:00:35]} Bg4 {[%emt 0:00:44]} 47. Rb4 {[%emt 0:01:50]} Rf4+ {[%emt 0:00:19]} 0-1